bitfinex/quotes_BTCUSD_20240823
["timestamp","ask_amount","ask_price","bid_price","bid_amount"]
[1724433315999,0.0009053,61830.0,61829.0,1.31915498]
[1724433316475,0.0009053,61830.0,61829.0,1.39605497]
[1724433316677,0.0009053,61830.0,61829.0,1.39805497]
[1724433316828,0.0009053,61830.0,61829.0,1.42405497]
[1724433317029,0.0009053,61830.0,61829.0,1.42605497]
[1724433317655,0.0009053,61830.0,61829.0,1.42940825]
[1724433317857,0.0009053,61830.0,61829.0,0.84303327]
[1724433318834,0.0009053,61830.0,61829.0,0.028]
[1724433319100,0.0009053,61830.0,61829.0,0.513208]
[1724433319447,0.0009053,61830.0,61829.0,1.160152]
[1724433319646,0.0009053,61830.0,61829.0,1.71710795]
[1724433320052,0.0009053,61830.0,61829.0,2.20607995]
[1724433320439,0.0009053,61830.0,61829.0,2.22907995]
[1724433320941,0.0002,61839.0,61838.0,1.21718699]
[1724433321116,0.0002,61839.0,61838.0,1.81124296]
[1724433321345,0.0002,61839.0,61838.0,2.52589295]
[1724433321562,0.0002,61839.0,61838.0,2.55833295]
[1724433322285,0.0002,61839.0,61838.0,2.56476722]
[1724433323157,0.0002,61839.0,61838.0,2.57876722]
[1724433323513,0.0002,61839.0,61838.0,2.26534223]
[1724433323725,0.0002,61839.0,61838.0,2.26734222]
[1724433323922,0.0002,61839.0,61838.0,2.24134222]
[1724433324124,0.0002,61839.0,61838.0,2.25534222]
[1724433324444,0.0002,61839.0,61838.0,2.24134222]
[1724433324803,0.0002,61839.0,61838.0,2.57876722]
[1724433325208,0.0002,61839.0,61838.0,2.59276722]
[1724433325839,0.0002,61839.0,61838.0,2.57876722]
[1724433326250,0.0002,61839.0,61838.0,2.59276722]
[1724433326670,0.00906401,61853.0,61838.0,2.59276722]
[1724433326671,0.00906401,61853.0,61851.0,1.625346]
[1724433327041,0.00906401,61853.0,61851.0,1.84994898]
[1724433328199,0.00906401,61853.0,61851.0,1.87030861]
[1724433328601,0.00906401,61853.0,61851.0,1.88430861]
[1724433328815,0.00906401,61853.0,61851.0,1.8853086]
[1724433328964,0.00906401,61853.0,61851.0,1.87030861]
[1724433329579,0.0644,61863.0,61860.0,0.161655]
[1724433329792,0.0644,61863.0,61860.0,0.484965]
[1724433330138,0.0644,61863.0,61860.0,0.808275]
[1724433330344,0.0644,61863.0,61860.0,0.484965]
[1724433330546,0.0644,61863.0,61857.0,0.161661]
[1724433330741,0.0644,61863.0,61851.0,0.30736261]
[1724433330742,0.0644,61863.0,61860.0,0.014]
[1724433330921,0.226047,61863.0,61860.0,0.014]
[1724433331328,0.0644,61863.0,61860.0,0.175655]
[1724433331529,0.0644,61863.0,61860.0,0.161655]
[1724433331732,0.0644,61863.0,61860.0,0.175655]
[1724433332081,0.63311,61861.0,61860.0,0.028]
[1724433332216,0.63311,61861.0,61860.0,0.014]
[1724433332419,0.63311,61861.0,61860.0,0.028]
[1724433332819,0.956415,61861.0,61860.0,0.028]
[1724433333197,0.1391,61860.0,61849.0,0.161681]
[1724433333400,0.323329,61857.0,61851.0,0.161677]
[1724433333614,0.323323,61858.0,61851.0,0.161677]
[1724433333811,0.161667,61856.0,61849.0,0.323368]
[1724433333965,0.323323,61858.0,61848.0,0.323372]
[1724433334167,0.161671,61854.0,61850.0,0.16168]
[1724433334380,0.161671,61854.0,61851.0,0.161678]
[1724433334780,0.161671,61854.0,61851.0,0.173678]
[1724433335186,0.485001,61856.0,61851.0,0.161678]
[1724433335387,0.1391,61860.0,61846.0,0.32975442]
[1724433335585,0.161661,61858.0,61850.0,0.00323323]
[1724433335788,0.300756,61860.0,61855.0,0.161668]
[1724433336414,0.1391,61860.0,61859.0,0.161657]
[1724433336610,0.0613,61860.0,61859.0,0.484972]
[1724433337531,0.0613,61860.0,61859.0,0.161657]
[1724433337732,0.0613,61860.0,61859.0,0.170657]
[1724433337939,0.0613,61860.0,61859.0,0.493972]
[1724433338827,0.08665593,61860.0,61859.0,0.493972]
[1724433339067,0.02535593,61860.0,61859.0,1.148602]
[1724433339258,0.009053,61861.0,61859.0,1.148602]
[1724433339259,0.009053,61861.0,61860.0,0.808275]
[1724433339437,0.009053,61861.0,61860.0,1.131585]
[1724433339812,0.009053,61861.0,61860.0,1.31858798]
[1724433340227,0.009053,61861.0,61860.0,1.29558798]
[1724433340825,0.009053,61861.0,61860.0,1.30958798]
[1724433341052,0.009053,61861.0,61860.0,1.29558798]
[1724433341252,0.009053,61861.0,61860.0,1.30258798]
[1724433341461,0.009053,61861.0,61860.0,1.31658798]
[1724433341655,0.009053,61861.0,61860.0,1.30958798]
[1724433341906,0.009053,61861.0,61860.0,1.75749797]
[1724433342079,0.109053,61869.0,61868.0,0.001]
[1724433342310,0.109053,61869.0,61868.0,1.14287298]
[1724433342438,0.109053,61869.0,61868.0,1.59858098]
[1724433342642,0.109053,61869.0,61868.0,2.24511698]
[1724433342842,0.109053,61869.0,61868.0,1.92184898]
[1724433343247,0.109053,61869.0,61868.0,1.92384897]
[1724433343709,0.109053,61869.0,61868.0,1.93784897]
[1724433343931,0.109053,61869.0,61868.0,1.93584898]
[1724433344412,1e-08,61879.0,61878.0,1.131256]
[1724433344612,1e-08,61879.0,61878.0,1.31825898]
[1724433346187,1e-08,61879.0,61878.0,1.32470564]
[1724433347634,1e-08,61879.0,61878.0,1.33870564]
[1724433348283,1e-08,61879.0,61878.0,1.81772164]
[1724433348479,1e-08,61879.0,61878.0,1.82172163]
[1724433348682,1e-08,61879.0,61878.0,2.67473736]
[1724433348885,1e-08,61879.0,61878.0,2.60327369]
[1724433349241,1e-08,61879.0,61878.0,2.5992737]
[1724433349430,1e-08,61879.0,61878.0,2.81356625]
[1724433349840,1e-08,61879.0,61878.0,2.81556624]
[1724433350072,1e-08,61879.0,61878.0,2.60327369]
[1724433350277,0.009053,61885.0,61884.0,1.535532]
[1724433350479,0.009053,61885.0,61884.0,1.82253498]
[1724433350837,0.009053,61885.0,61884.0,1.82653497]
[1724433351262,0.0122069,61894.0,61893.0,1.13398299]
[1724433351263,0.00152586,61894.0,61893.0,1.13398299]
[1724433351471,0.00088292,61896.0,61895.0,0.63018999]
[1724433351662,0.00088292,61896.0,61895.0,2.23624583]
[1724433351663,9.2e-07,61896.0,61895.0,2.23624583]
[1724433352056,0.49229154,61908.0,61907.0,0.890062]
[1724433352181,0.0811,61925.0,61913.0,0.161516]
[1724433352182,0.0811,61914.0,61913.0,0.161516]
[1724433352382,0.02533487,61917.0,61914.0,0.323027]
[1724433352595,0.02533487,61917.0,61916.0,0.161509]
[1724433352796,0.02533487,61917.0,61908.0,0.323058]
[1724433352797,0.02533487,61917.0,61915.0,0.16151]
[1724433353021,0.02533487,61917.0,61908.0,0.323058]
[1724433353022,0.02533487,61917.0,61909.0,0.323052]
[1724433353419,0.0663,61914.0,61910.0,0.16475193]
[1724433353591,0.0663,61914.0,61913.0,0.161516]
[1724433353928,0.02533487,61917.0,61916.0,0.484527]
[1724433354136,0.02533487,61917.0,61911.0,0.323042]
[1724433354757,0.02533487,61917.0,61907.0,0.0814]
[1724433354758,0.02533487,61917.0,61916.0,0.014]
[1724433354985,0.02533487,61917.0,61913.0,0.014]
[1724433355499,0.02533487,61917.0,61916.0,0.161509]
[1724433355933,0.02533487,61917.0,61916.0,0.175509]
[1724433356397,0.02533487,61917.0,61916.0,0.64852998]
[1724433356596,0.02533487,61917.0,61916.0,0.99454798]
[1724433356731,0.02533487,61917.0,61916.0,1.31756598]
[1724433357219,0.02533487,61917.0,61916.0,0.99454798]
[1724433357844,0.02533487,61917.0,61916.0,0.807545]
[1724433358047,0.02533487,61917.0,61916.0,0.820545]
[1724433358242,0.02533487,61917.0,61916.0,1.02154798]
[1724433358459,0.02533487,61917.0,61916.0,0.99454798]
[1724433358702,0.02533487,61917.0,61916.0,1.33056598]
[1724433358875,0.02533487,61917.0,61916.0,1.02154798]
[1724433359071,0.02533487,61917.0,61916.0,1.00754798]
[1724433359296,0.02533487,61917.0,61916.0,0.99454798]
[1724433359513,0.1436,61925.0,61916.0,0.99454798]
[1724433359514,1e-08,61923.0,61922.0,0.559779]
[1724433359730,1e-08,61923.0,61922.0,1.06976798]
[1724433360353,1e-08,61923.0,61922.0,0.99446798]
[1724433361366,0.06580001,61923.0,61922.0,0.161493]
[1724433361564,0.06580001,61923.0,61922.0,0.73908198]
[1724433361565,1e-08,61923.0,61922.0,0.73908198]
[1724433361771,1e-08,61923.0,61922.0,1.40805398]
[1724433361916,1e-08,61923.0,61922.0,1.39405398]
[1724433362137,1e-08,61923.0,61922.0,1.40805398]
[1724433362372,0.0658,61928.0,61927.0,0.8074]
[1724433362813,0.06638518,61932.0,61929.0,0.807375]
[1724433363037,0.06638518,61932.0,61929.0,0.484425]
[1724433363275,0.00058518,61932.0,61929.0,0.64842798]
[1724433363525,0.00058518,61932.0,61929.0,0.99437798]
[1724433363741,0.00058518,61932.0,61929.0,0.161475]
[1724433363994,0.00058518,61932.0,61929.0,0.674657]
[1724433364205,0.00058518,61932.0,61929.0,0.997607]
[1724433364484,0.00058518,61932.0,61929.0,1.320557]
[1724433364755,0.00058518,61932.0,61929.0,1.402357]
[1724433364914,0.00058518,61932.0,61929.0,1.00837798]
[1724433365342,0.00058518,61932.0,61929.0,0.99875179]
[1724433365544,0.00058518,61932.0,61929.0,1.00875179]
[1724433365772,0.00058518,61932.0,61929.0,1.01775179]
[1724433366105,0.00058518,61932.0,61929.0,1.00775179]
[1724433366255,0.00058518,61932.0,61929.0,1.32170179]
[1724433366455,0.00058518,61932.0,61929.0,0.99875179]
[1724433366611,0.00058518,61932.0,61929.0,1.01275179]
[1724433367116,0.00367147,61935.0,61934.0,0.80831]
[1724433367305,0.00058464,61947.0,61946.0,0.16243]
[1724433367512,0.00058464,61947.0,61946.0,1.90550699]
[1724433367736,0.49229154,61965.0,61948.0,0.59791599]
[1724433367939,4e-05,61980.0,61948.0,0.59791599]
[1724433367940,0.1546875,61949.0,61948.0,1.92137197]
[1724433368142,0.0827,61978.0,61950.0,0.001]
[1724433368364,0.0827,61978.0,61953.0,2.036006]
[1724433368667,4e-05,61980.0,61953.0,0.682294]
[1724433368850,0.0648,61965.0,61954.0,0.023]
[1724433369046,0.0648,61965.0,61954.0,0.18700298]
[1724433369464,0.484252,61951.0,61950.0,0.014]
[1724433369673,0.484252,61951.0,61948.0,0.014]
[1724433369674,0.161423,61949.0,61948.0,0.014]
[1724433369878,0.387635,61951.0,61948.0,0.014]
[1724433369879,0.0648,61951.0,61948.0,0.014]
[1724433370077,0.226218,61951.0,61948.0,0.014]
[1724433370331,0.226218,61951.0,61935.0,0.322916]
[1724433370332,0.322846,61949.0,61935.0,0.322916]
[1724433370553,0.0648,61951.0,61936.0,0.16400298]
[1724433370738,0.0622,61941.0,61936.0,0.322912]
[1724433370942,0.0622,61941.0,61937.0,0.322908]
[1724433371146,0.0622,61941.0,61940.0,0.161446]
[1724433371320,0.0622,61941.0,61932.0,0.322934]
[1724433371529,0.0622,61941.0,61938.0,0.161451]
[1724433371728,0.0622,61941.0,61939.0,0.16467557]
[1724433371950,0.0622,61941.0,61939.0,0.161447]
[1724433372149,0.0622,61941.0,61936.0,0.009]
[1724433372440,0.0622,61941.0,61935.0,0.322917]
[1724433372631,0.0622,61941.0,61936.0,0.008]
[1724433372762,0.322857,61947.0,61936.0,0.169455]
[1724433373131,0.161441,61943.0,61938.0,0.16145]
[1724433373331,0.49229154,61950.0,61940.0,0.00437381]
[1724433373535,0.161443,61941.0,61940.0,0.00437381]
[1724433373785,0.16400298,61949.0,61940.0,0.00437381]
[1724433373902,0.161443,61941.0,61940.0,0.00437381]
[1724433374510,0.161443,61941.0,61940.0,0.00537381]
[1724433374712,0.003,61955.0,61940.0,0.00537381]
[1724433374713,0.003,61967.0,61940.0,0.16937679]
[1724433374920,0.38459413,61968.0,61941.0,0.65270379]
[1724433374921,0.161428,61948.0,61941.0,0.65270379]
[1724433375191,0.161427,61948.0,61942.0,0.16144]
[1724433375384,0.161427,61948.0,61941.0,0.49126179]
[1724433375385,0.161433,61945.0,61941.0,0.00437381]
[1724433375557,0.02532195,61947.0,61944.0,0.161434]
[1724433375734,0.0616,61946.0,61941.0,0.00437381]
[1724433376127,0.0616,61946.0,61941.0,0.16581581]
[1724433376353,0.0616,61946.0,61941.0,0.00537381]
[1724433376539,0.0616,61946.0,61945.0,0.161433]
[1724433376769,0.02532195,61947.0,61946.0,0.16143]
[1724433376957,1e-08,61947.0,61946.0,0.16143]
[1724433377159,1e-08,61947.0,61942.0,0.00322849]
[1724433377160,1e-08,61947.0,61944.0,0.16466224]
[1724433377366,1e-08,61947.0,61942.0,0.001]
[1724433377367,0.0621,61951.0,61942.0,0.00422829]
[1724433377568,0.161421,61950.0,61945.0,0.161432]
[1724433377774,0.161427,61948.0,61945.0,0.001]
[1724433377980,0.001,61946.0,61945.0,0.001]
[1724433378188,0.001,61946.0,61943.0,0.161438]
[1724433378385,0.161426,61948.0,61944.0,0.001]
[1724433378596,0.0621,61951.0,61946.0,0.16580181]
[1724433378809,0.001,61950.0,61949.0,0.161423]
[1724433379034,0.001,61950.0,61949.0,0.64827198]
[1724433379235,0.0629,61956.0,61955.0,0.161407]
[1724433379443,0.0629,61956.0,61946.0,0.00437381]
[1724433379444,0.08821702,61956.0,61946.0,0.00437381]
[1724433379645,0.08821702,61956.0,61952.0,0.161414]
[1724433379848,0.08821702,61956.0,61949.0,0.322844]
[1724433379849,0.24962202,61956.0,61949.0,0.322844]
[1724433380058,0.24962202,61956.0,61948.0,0.32285]
[1724433380059,0.08821702,61956.0,61953.0,0.161412]
[1724433380271,0.08821702,61956.0,61954.0,0.161408]
[1724433380861,0.08821702,61956.0,61952.0,0.169413]
[1724433381084,0.08821702,61956.0,61947.0,0.49122879]
[1724433381085,0.08821702,61956.0,61947.0,0.00437381]
[1724433381298,0.08821702,61956.0,61947.0,0.16579981]
[1724433381509,0.08821702,61956.0,61954.0,0.004]
[1724433381719,0.02531702,61956.0,61955.0,0.484221]
[1724433382143,0.02531702,61956.0,61955.0,0.97103798]
[1724433382789,0.0641,61966.0,61960.0,0.322786]
[1724433383006,0.0641,61966.0,61965.0,0.161381]
[1724433383217,0.0641,61966.0,61961.0,0.16139]
[1724433383218,0.161381,61965.0,61961.0,0.16139]
[1724433383420,0.225479,61966.0,61961.0,0.16139]
[1724433383621,0.0641,61966.0,61955.0,0.51081298]
[1724433383750,0.0641,61966.0,61956.0,0.18700298]
[1724433383957,0.225479,61966.0,61957.0,0.322799]
[1724433384155,0.225479,61966.0,61962.0,0.161389]
[1724433384561,0.161382,61965.0,61959.0,0.322791]
[1724433384767,0.0641,61966.0,61959.0,0.322791]
[1724433384969,0.0641,61966.0,61963.0,0.161386]
[1724433385166,0.0253143,61964.0,61963.0,0.161386]
[1724433385373,0.0253143,61964.0,61958.0,0.16400298]
[1724433385572,0.0253143,61964.0,61961.0,0.16139]
[1724433385795,0.0253143,61964.0,61963.0,0.484159]
[1724433386018,0.47418489,61994.0,61978.0,0.161347]
[1724433386019,0.0656,61982.0,61978.0,0.161347]
[1724433386271,0.0656,61982.0,61978.0,0.484042]
[1724433386462,0.08947035,61985.0,61978.0,0.99373998]
[1724433386463,0.01217035,61985.0,61978.0,0.99373998]
[1724433386695,0.03455221,61979.0,61978.0,1.31643498]
[1724433387325,0.03455221,61979.0,61978.0,1.31743498]
[1724433387544,0.03455221,61979.0,61978.0,1.31643498]
[1724433387744,0.01217035,61985.0,61979.0,0.806722]
[1724433387957,0.01217035,61985.0,61979.0,0.484033]
[1724433388167,0.01217035,61985.0,61979.0,0.161344]
[1724433388371,0.01217035,61985.0,61979.0,0.484033]
[1724433388746,0.01217035,61985.0,61979.0,0.161344]
[1724433388972,0.01217035,61985.0,61979.0,0.484033]
[1724433389114,0.03747738,61985.0,61979.0,0.484033]
[1724433389314,0.03747738,61985.0,61979.0,0.497033]
[1724433389753,0.0759,61981.0,61979.0,0.013]
[1724433389963,0.544466,61980.0,61979.0,0.013]
[1724433390158,0.86715,61980.0,61979.0,0.027]
[1724433390380,0.06044,61980.0,61979.0,0.027]
[1724433390707,0.86715,61980.0,61979.0,0.027]
[1724433390911,1.189834,61980.0,61979.0,0.027]
[1724433391125,1.189834,61980.0,61966.0,0.00437588]
[1724433391126,0.06044,61980.0,61966.0,0.00437588]
[1724433391273,0.221782,61980.0,61979.0,0.013]
[1724433391507,0.221782,61980.0,61979.0,0.006]
[1724433391728,0.06044,61980.0,61979.0,0.006]
[1724433391928,4e-05,61980.0,61968.0,0.1393]
[1724433392244,0.03747738,61985.0,61968.0,0.1393]
[1724433392245,0.03747738,61985.0,61979.0,0.001]
[1724433392417,0.03747738,61985.0,61981.0,0.322676]
[1724433392636,0.03747738,61985.0,61984.0,0.161331]
[1724433392839,0.03747738,61985.0,61984.0,0.483994]
[1724433393055,0.03747738,61985.0,61984.0,0.161331]
[1724433393278,0.03747738,61985.0,61984.0,0.483994]
[1724433393491,0.03747738,61985.0,61984.0,0.161331]
[1724433393689,0.03947738,61985.0,61984.0,0.161331]
[1724433393901,0.03747738,61985.0,61984.0,0.161331]
[1724433394309,0.03947738,61985.0,61984.0,0.161331]
[1724433394534,0.03947738,61985.0,61984.0,0.806657]
[1724433394741,0.03947738,61985.0,61984.0,0.97065998]
[1724433394965,0.04047738,61985.0,61984.0,1.31632298]
[1724433395161,0.00904201,61992.0,61984.0,0.63549711]
[1724433395413,0.00904201,61992.0,61991.0,1.75499111]
[1724433395711,0.00904201,61992.0,61991.0,1.43236411]
[1724433395712,0.00134201,61992.0,61991.0,1.43236411]
[1724433395897,0.00134201,61992.0,61991.0,1.45536411]
[1724433396306,0.00134201,61992.0,61991.0,1.83899111]
[1724433396713,0.00134201,61992.0,61991.0,1.45339698]
[1724433396918,0.00134201,61992.0,61991.0,0.67094298]
[1724433397134,0.00134201,61992.0,61991.0,0.68494298]
[1724433397338,0.00134201,61992.0,61991.0,0.175313]
[1724433397568,0.00134201,61992.0,61991.0,0.014]
[1724433397807,0.00134201,61992.0,61991.0,0.49794]
[1724433397997,0.00134201,61992.0,61991.0,1.34842271]
[1724433398121,0.00134201,61992.0,61991.0,1.35279859]
[1724433398327,0.00134201,61992.0,61991.0,1.33457286]
[1724433398714,0.00134201,61992.0,61991.0,1.34857286]
[1724433399183,0.00134201,61992.0,61991.0,1.32057286]
[1724433399386,0.00134201,61992.0,61991.0,1.33457286]
[1724433399639,0.00134201,61992.0,61991.0,0.35769186]
[1724433399839,0.00134201,61992.0,61991.0,0.50231588]
[1724433400214,0.00134201,61992.0,61991.0,0.83894288]
[1724433400680,0.00134201,61992.0,61991.0,0.50231588]
[1724433400889,0.00134201,61992.0,61991.0,0.01837588]
[1724433401089,0.00134201,61992.0,61991.0,0.17968888]
[1724433401204,0.00134201,61992.0,61991.0,0.51631588]
[1724433401855,0.00134201,61992.0,61991.0,0.17968888]
[1724433402052,0.00134201,61992.0,61991.0,0.18368888]
[1724433402252,0.00134201,61992.0,61991.0,0.16968888]
[1724433402495,0.00134201,61992.0,61991.0,0.17468888]
[1724433402745,0.00134201,61992.0,61991.0,0.49331588]
[1724433402904,0.00134201,61992.0,61991.0,0.49231588]
[1724433403122,0.1582229,61998.0,61992.0,0.161309]
[1724433403330,0.1582229,61998.0,61992.0,0.322622]
[1724433403536,0.0002,61999.0,61998.0,0.483886]
[1724433403968,0.0002,61999.0,61998.0,0.161295]
[1724433404361,0.0002,61999.0,61998.0,0.483886]
[1724433404490,0.0002,61999.0,61998.0,0.806477]
[1724433404686,0.0402,62000.0,61999.0,0.483877]
[1724433404913,0.0402,62000.0,61999.0,0.161292]
[1724433405335,0.0402,62000.0,61999.0,0.483877]
[1724433406171,0.0402,62000.0,61999.0,0.495877]
[1724433406377,0.0402,62000.0,61999.0,0.508877]
[1724433407028,0.0196638,62003.0,61999.0,0.508877]
[1724433407029,1e-08,62001.0,62000.0,0.48387]
[1724433407392,1e-08,62001.0,62000.0,1.31603298]
[1724433407718,1e-08,62001.0,62000.0,1.71471298]
[1724433407931,0.0196638,62003.0,62002.0,0.882525]
[1724433408135,0.0196638,62003.0,62002.0,1.71466798]
[1724433408718,0.0196638,62003.0,62002.0,1.49109798]
[1724433408919,0.0196638,62003.0,62002.0,1.39109798]
[1724433409146,0.0196638,62003.0,62002.0,1.38209798]
[1724433409342,0.0196638,62003.0,62002.0,0.73695798]
[1724433409768,0.0196638,62003.0,62002.0,0.75095798]
[1724433410391,0.0146638,62003.0,62002.0,0.189285]
[1724433410585,0.0146638,62003.0,62002.0,0.028]
[1724433410586,0.1759458,62003.0,62002.0,0.028]
[1724433410817,0.4985108,62003.0,62002.0,0.028]
[1724433411122,0.9028758,62003.0,62002.0,0.028]
[1724433411323,0.0146638,62003.0,62002.0,0.028]
[1724433411691,0.0146638,62003.0,62002.0,0.497855]
[1724433411869,0.0146638,62003.0,62002.0,0.66185798]
[1724433412071,0.0146638,62003.0,62002.0,0.99842798]
[1724433412272,0.0146638,62003.0,62002.0,1.30699798]
[1724433412474,0.0146638,62003.0,62002.0,0.97480386]
[1724433412652,0.0146638,62003.0,62002.0,0.98880386]
[1724433412857,0.0146638,62003.0,62002.0,0.97780386]
[1724433413143,0.0146638,62003.0,62002.0,0.65523386]
[1724433413344,0.0146638,62003.0,62002.0,0.66623386]
[1724433413548,0.0146638,62003.0,62002.0,0.34366386]
[1724433413781,0.0146638,62003.0,62002.0,0.66623386]
[1724433414232,0.0146638,62003.0,62002.0,0.66323386]
[1724433414434,0.0146638,62003.0,62002.0,0.67323386]
[1724433414766,0.0146638,62003.0,62002.0,0.18937886]
[1724433415085,0.0146638,62003.0,62002.0,0.35066386]
[1724433415271,0.0146638,62003.0,62002.0,0.02537588]
[1724433415883,0.0146638,62003.0,62002.0,0.18666088]
[1724433416083,0.0146638,62003.0,62002.0,0.99580386]
[1724433416350,0.0146638,62003.0,62002.0,0.67323386]
[1724433416589,0.0146638,62003.0,62002.0,0.02537588]
[1724433417325,0.4985108,62003.0,62002.0,0.02537588]
[1724433417527,0.5787108,62003.0,62002.0,0.02537588]
[1724433417752,0.4985108,62003.0,62002.0,0.02537588]
[1724433418296,0.8210758,62003.0,62002.0,0.02537588]
[1724433418648,0.4985108,62003.0,62002.0,0.02537588]
[1724433419285,0.0146638,62003.0,62002.0,0.50923088]
[1724433420054,0.0146638,62003.0,62002.0,0.18666088]
[1724433420257,0.0146638,62003.0,62002.0,0.02537588]
[1724433420467,0.5765108,62003.0,62002.0,0.02537588]
[1724433421502,0.9630758,62003.0,62002.0,0.02537588]
[1724433421951,0.9630758,62003.0,62002.0,0.02437588]
[1724433422810,1.2856408,62003.0,62002.0,0.02437588]
[1724433423010,1.2856408,62003.0,62002.0,0.01437588]
[1724433423385,1.45064378,62003.0,62002.0,0.02437588]
[1724433423585,1.87520878,62003.0,62002.0,0.02437588]
[1724433423891,1.87520878,62003.0,62002.0,0.01437588]
[1724433423892,1.55264378,62003.0,62002.0,0.01437588]
[1724433424081,1.55264378,62003.0,62002.0,0.00437588]
[1724433424320,1.55264378,62003.0,62002.0,0.01737588]
[1724433424768,1.54964378,62003.0,62002.0,0.01037588]
[1724433424975,1.55064378,62003.0,62002.0,0.01037588]
[1724433425121,1.55264378,62003.0,62002.0,0.01037588]
[1724433425328,1.71662256,62003.0,62002.0,0.00437588]
[1724433425674,1.71662256,62003.0,62002.0,0.00537588]
[1724433425675,1.90045586,62003.0,62002.0,0.00537588]
[1724433425891,1.57789086,62003.0,62002.0,0.00437588]
[1724433426068,1.57989086,62003.0,62002.0,0.00437588]
[1724433426301,1.90545586,62003.0,62002.0,0.00437588]
[1724433426506,1.90245586,62003.0,62002.0,0.00437588]
[1724433426714,1.57989086,62003.0,62002.0,0.00437588]
[1724433426932,1.58389086,62003.0,62002.0,0.00619588]
[1724433427141,1.57989086,62003.0,62002.0,0.00519588]
[1724433427366,1.57789086,62003.0,62002.0,0.00519588]
[1724433427587,1.55064378,62003.0,62002.0,0.00619588]
[1724433427803,1.3866408,62003.0,62002.0,0.00619588]
[1724433428006,0.0156638,62003.0,62002.0,0.00619588]
[1724433428209,0.0146638,62003.0,62002.0,0.32776588]
[1724433428426,0.0156638,62003.0,62002.0,0.49005088]
[1724433428634,0.0156638,62003.0,62002.0,0.81262088]
[1724433428843,0.0196638,62003.0,62002.0,0.00719588]
[1724433429052,0.0146638,62003.0,62002.0,0.00519588]
[1724433429714,0.0156638,62003.0,62002.0,0.16648088]
[1724433429887,0.0156638,62003.0,62002.0,0.18048088]
[1724433430125,0.0156638,62003.0,62002.0,0.01919588]
[1724433430347,0.1769458,62003.0,62002.0,0.01919588]
[1724433430592,0.2562458,62003.0,62002.0,0.01919588]
[1724433430798,0.5788108,62003.0,62002.0,0.03319588]
[1724433431018,0.4985108,62003.0,62002.0,0.03319588]
[1724433431453,0.1759458,62003.0,62002.0,0.03319588]
[1724433432427,0.4985108,62003.0,62002.0,0.03319588]
[1724433432830,0.8210758,62003.0,62002.0,0.03319588]
[1724433433035,1.2082408,62003.0,62002.0,0.03319588]
[1724433433253,1.45394378,62003.0,62002.0,0.03319588]
[1724433433456,1.45094378,62003.0,62002.0,0.03319588]
[1724433433771,0.9643758,62003.0,62002.0,0.03319588]
[1724433434171,0.9643758,62003.0,62002.0,0.01919588]
[1724433434552,0.9643758,62003.0,62002.0,0.03019588]
[1724433434761,0.9643758,62003.0,62002.0,0.01619588]
[1724433435159,1.45094378,62003.0,62002.0,0.02819588]
[1724433435436,1.45394378,62003.0,62002.0,0.02819588]
[1724433435645,1.12837878,62003.0,62002.0,0.02819588]
[1724433435874,1.12837878,62003.0,62002.0,0.01619588]
[1724433436300,1.12937878,62003.0,62002.0,0.01619588]
[1724433436519,1.57919014,62003.0,62002.0,0.01619588]
[1724433437005,1.57919014,62003.0,62002.0,0.00519588]
[1724433437178,1.57719014,62003.0,62002.0,0.00519588]
[1724433437381,1.58019014,62003.0,62002.0,0.00519588]
[1724433437753,1.57919014,62003.0,62002.0,0.00519588]
[1724433438120,1.58219014,62003.0,62002.0,0.00519588]
[1724433438587,1.57919014,62003.0,62002.0,0.00519588]
[1724433438805,2.61091427,62003.0,62002.0,0.00519588]
[1724433439012,2.36377048,62003.0,62002.0,0.00519588]
[1724433439219,2.38791088,62003.0,62002.0,0.00519588]
[1724433439460,2.39189497,62003.0,62002.0,0.00519588]
[1724433439881,2.55587375,62003.0,62002.0,0.00519588]
[1724433440089,2.55987375,62003.0,62002.0,0.00619588]
[1724433440350,2.61891427,62003.0,62002.0,0.00619588]
[1724433440814,2.64491427,62003.0,62002.0,8.8e-07]
[1724433441239,1.98881513,61991.0,61990.0,0.00058257]
[1724433441442,2.17806447,61991.0,61990.0,0.00058257]
[1724433441690,2.30106447,61991.0,61990.0,0.00058257]
[1724433441902,2.78767025,61991.0,61990.0,0.00058257]
[1724433442105,2.8129797,61991.0,61990.0,0.00058257]
[1724433442543,2.90942643,61991.0,61990.0,0.00058257]
[1724433442759,2.8169797,61991.0,61990.0,0.00058257]
[1724433442973,2.65300092,61991.0,61990.0,0.00058257]
[1724433443807,2.65800092,61991.0,61990.0,0.00058257]
[1724433444862,2.7544496,61991.0,61990.0,0.00058257]
[1724433445069,2.65800092,61991.0,61990.0,0.00058257]
[1724433445486,2.74532918,61991.0,61990.0,0.00058257]
[1724433445696,2.92330796,61991.0,61990.0,0.00158257]
[1724433446123,3.23193496,61991.0,61990.0,5.7e-07]
[1724433446336,3.24593496,61991.0,61990.0,5.7e-07]
[1724433446548,3.24593496,61991.0,61964.0,0.49229154]
[1724433446549,1.98747213,61980.0,61964.0,0.49229154]
[1724433446757,2.27447511,61980.0,61964.0,0.49229154]
[1724433446965,2.43845389,61980.0,61964.0,0.49229154]
[1724433447174,2.43845389,61980.0,61957.0,0.0802]
[1724433447390,2.27678876,61980.0,61957.0,0.0802]
[1724433447602,1.89219463,61980.0,61957.0,0.241601]
[1724433447815,1.90119463,61980.0,61979.0,0.001821]
[1724433448489,1.57651063,61980.0,61979.0,0.001821]
[1724433448711,1.10502663,61980.0,61979.0,0.001821]
[1724433448929,1.10502663,61980.0,61979.0,0.077921]
[1724433448930,0.19565565,61980.0,61979.0,0.077921]
[1724433449144,0.84902365,61980.0,61979.0,0.077921]
[1724433449353,0.84902365,61980.0,61979.0,0.001821]
[1724433449354,1.01302663,61980.0,61979.0,0.001821]
[1724433449553,1.43801329,61980.0,61979.0,0.001821]
[1724433449825,1.43701329,61980.0,61979.0,0.001821]
[1724433450029,1.42001329,61980.0,61979.0,0.000821]
[1724433450237,1.42801329,61980.0,61979.0,0.000821]
[1724433450447,1.50401329,61980.0,61979.0,0.000821]
[1724433450661,1.91769729,61980.0,61979.0,0.000821]
[1724433451133,1.52001329,61980.0,61979.0,0.000821]
[1724433451357,1.41971063,61980.0,61979.0,0.005821]
[1724433451576,0.51033965,61980.0,61979.0,0.082121]
[1724433451794,0.83202365,61980.0,61979.0,0.077121]